fUST/lending_fUST_20250308
["ID","MTS","AMOUNT","RATE_DAILY","PERIOD"]
[355644619,1741425048094,-252725.66452355,0.00049596,7]
[355644620,1741425049279,-500.0,0.00049315,2]
[355644621,1741425049289,-22060.25588146,0.00049596,7]
[355644622,1741425083330,155.21,0.000381,31]
[355644623,1741425083376,155.21,0.000381,31]
[355644624,1741425083432,155.21,0.00043,33]
[355644625,1741425083494,155.21,0.00043,33]
[355644626,1741425083569,155.21,0.00043,33]
[355644627,1741425083628,155.21,0.00043,33]
[355644628,1741425087501,892.9079,0.00044443,120]
[355644629,1741425087532,106.0921,0.00044443,120]
[355644630,1741425147452,2104.01931122,0.0004,120]
[355644631,1741425373715,1074.09385192,5e-05,30]
[355645157,1741426026134,-159.214354,0.0003589,2]
[355645158,1741426026168,-153.96,0.000381,31]
[355645159,1741426026202,-153.96,0.000381,31]
[355645160,1741426026236,-153.96,0.000381,31]
[355645161,1741426026262,-159.214354,0.00041507,2]
[355645162,1741426026291,-550.0,0.00042768,5]
[355645163,1741426026318,-55.93655134,0.00042769,2]
[355645164,1741426032175,-932.38869263,0.00042769,2]
[355645165,1741426035078,-1935.0653879,0.00042769,2]
[355645187,1741426052080,-8724.3895211,0.00042769,2]
[355645197,1741426112547,11611.54341175,0.00018,4]
[355645199,1741426115792,4006.10391316,0.00022,2]
[355645201,1741426147095,-217.70552452,0.00040669,2]
[355645202,1741426147118,-258.65865835,0.00042322,2]
[355645203,1741426147141,-10897.72031396,0.00042769,2]
[355645204,1741426150086,-753.21409638,0.00042769,2]
[355645205,1741426152089,-1601.28543669,0.00042769,2]
[355645206,1741426152115,-153.96,0.00043,33]
[355645207,1741426152139,-153.96,0.00043,33]
[355645208,1741426152163,-153.96,0.00043,33]
[355645209,1741426152188,-153.96,0.00043,33]
[355645210,1741426152214,-153.96,0.00043,33]
[355645211,1741426152237,-153.96,0.00043,33]
[355645212,1741426152257,-500.0,0.00043,10]
[355645213,1741426152277,-500.0,0.00043,2]
[355645214,1741426152299,-123.75587197,0.00043,10]
[355645215,1741426158078,-376.24412803,0.00043,10]
[355645216,1741426158098,-500.0,0.00043,2]
[355645263,1741426232631,2053.49173897,0.00043,60]
[355645265,1741426232653,1627.66952719,0.00043,60]
[355645268,1741426232670,-5111.34873384,0.00043,60]
[355645269,1741426232683,-233.98865417,0.00045322,120]
[355645270,1741426232693,-150.144,0.00045418,120]
[355645271,1741426232702,-217.70552452,0.00045669,2]
[355645272,1741426232712,-1633.76298847,0.00046708,2]
[355645273,1741426232722,-159.214354,0.00047123,2]
[355645274,1741426232732,-153.96,0.000479,42]
[355645275,1741426232741,-153.96,0.000479,42]
[355645276,1741426232751,-153.96,0.000479,42]
[355645277,1741426232760,-153.96,0.000479,42]
[355645278,1741426232770,-153.96,0.000479,42]
[355645279,1741426232780,-153.96,0.000479,42]
[355645280,1741426232789,-500.0,0.00047973,10]
[355645281,1741426232799,-500.0,0.00047973,2]
[355645282,1741426232808,-3740.90220762,0.0004799,4]
[355645283,1741426232818,-836.44,0.0004799,30]
[355645284,1741426232827,-585.3953861,0.0004799,10]
[355645285,1741426232840,-312.2846139,0.0004799,10]
[355645286,1741426232850,-500.0,0.00047999,2]
[355645287,1741426232860,-500.0,0.00047999,2]
[355645288,1741426232869,-175.974393,0.00047999,120]
[355645289,1741426232879,-595.0,0.00047999,2]
[355645290,1741426232888,-52.24099314,0.00048,120]
[355645291,1741426232899,-3946.29444898,0.00048,120]
[355645292,1741426232923,-429.08,0.00048,120]
[355645297,1741426238560,-317.53962112,0.00047023,120]
[355645298,1741426238570,-22272.01357147,0.00048,120]
[355645299,1741426238617,-17454.38787953,0.00048,120]
[355645308,1741426240801,-2907.94838537,0.00048,120]
[355645318,1741426243910,-317.53962112,0.00047742,120]
[355645319,1741426243920,-117937.91472151,0.00048,120]
[355645320,1741426243929,-500.0,0.00048238,93]
[355645321,1741426243939,-500.0,0.00048338,99]
[355645322,1741426243948,-492.31339499,0.0004837,28]
[355645323,1741426243957,-500.0,0.00048438,91]
[355645324,1741426243967,-1870.45110381,0.00048469,4]
[355645325,1741426243976,-1000.0,0.00048479,10]
[355645326,1741426243986,-500.0,0.00048538,95]
[355645327,1741426243995,-600.0,0.00048571,2]
[355645328,1741426244005,-492.31339496,0.00048589,28]
[355645329,1741426244014,-7481.80441524,0.0004859,4]
[355645330,1741426244024,-201.64,0.000486,30]
[355645331,1741426244034,-999.0,0.000486,120]
[355645332,1741426244043,-2263.78199972,0.000486,120]
[355645333,1741426244052,-222000.0,0.000486,2]
[355645334,1741426244062,-363.085018,0.00048604,4]
[355645335,1741426244071,-500.0,0.00048638,96]
[355645336,1741426244080,-200.0,0.00048642,120]
[355645337,1741426244089,-500.0,0.00048673,10]
[355645338,1741426244099,-500.0,0.00048673,10]
[355645339,1741426244108,-500.0,0.00048673,10]
[355645340,1741426244117,-500.0,0.00048673,10]
[355645341,1741426244127,-1284.25,0.000487,30]
[355645342,1741426244137,-991.72,0.000487,30]
[355645343,1741426244146,-500.0,0.00048738,92]
[355645344,1741426244155,-492.31339496,0.00048807,28]
[355645345,1741426244165,-500.0,0.00048838,96]
[355645346,1741426244175,-1870.45110381,0.0004889,4]
[355645347,1741426244184,-2000.0,0.00048898,120]
[355645348,1741426244194,-9873.36327224,0.000489,120]
[355645349,1741426244203,-500.0,0.00048938,96]
[355645350,1741426244212,-8197.30080522,0.00049,120]
[355645351,1741426244222,-10396.68750568,0.00049,120]
[355645352,1741426244231,-5000.0,0.00049,15]
[355645353,1741426244240,-10000.0,0.00049,15]
[355645354,1741426244250,-492.31339496,0.00049026,28]
[355645355,1741426244259,-500.0,0.00049038,97]
[355645356,1741426244268,-622.2,0.00049119,2]
[355645357,1741426244278,-500.0,0.00049138,93]
[355645358,1741426244288,-2000.0,0.00049229,120]
[355645359,1741426244297,-500.0,0.00049238,95]
[355645360,1741426244306,-492.31339496,0.00049244,28]
[355645361,1741426244317,-1870.45110381,0.0004929,4]
[355645362,1741426244327,-55555.0,0.000493,120]
[355645363,1741426244336,-10000.0,0.000493,120]
[355645364,1741426244346,-3740.90220762,0.00049305,4]
[355645365,1741426244355,-500.0,0.00049315,120]
[355645366,1741426244365,-500.0,0.00049315,120]
[355645367,1741426244375,-500.0,0.00049315,120]
[355645368,1741426244384,-500.0,0.00049315,120]
[355645369,1741426244393,-500.0,0.00049315,120]
[355645370,1741426244402,-500.0,0.00049315,120]
[355645371,1741426244412,-765.41,0.00049315,120]
[355645372,1741426244422,-500.0,0.00049315,120]
[355645373,1741426244432,-500.0,0.00049315,120]
[355645374,1741426244441,-515.37400784,0.00049315,120]
[355645375,1741426244451,-500.0,0.00049315,120]
[355645376,1741426244460,-347.35096639,0.00049315,120]
[355645377,1741426244469,-500.0,0.00049315,120]
[355645378,1741426244479,-500.0,0.00049315,120]
[355645379,1741426244587,-1570.68,0.00049315,120]
[355645380,1741426244601,-500.0,0.00049315,120]
[355645381,1741426244611,-568.76,0.00049315,120]
[355645382,1741426244620,-733.55,0.00049315,120]
[355645383,1741426244629,-501.84871168,0.00049315,120]
[355645384,1741426244638,-500.0,0.00049315,120]
[355645385,1741426244647,-500.0,0.00049315,5]
[355645386,1741426244661,-500.0,0.00049315,120]
[355645387,1741426244670,-3714.49,0.00049315,120]
[355645388,1741426244679,-500.0,0.00049315,120]
[355645389,1741426244689,-500.0,0.00049315,120]
[355645390,1741426244698,-500.0,0.00049315,120]
[355645391,1741426244707,-500.0,0.00049315,120]
[355645392,1741426244716,-519.48480496,0.00049315,120]
[355645393,1741426244725,-500.0,0.00049315,120]
[355645394,1741426244735,-746.86,0.00049315,120]
[355645395,1741426244743,-500.0,0.00049315,120]
[355645396,1741426244752,-1100.25,0.00049315,120]
[355645397,1741426244761,-2980.47,0.00049315,120]
[355645398,1741426244770,-733.6,0.00049315,120]
[355645399,1741426244780,-500.0,0.00049315,120]
[355645400,1741426244789,-500.0,0.00049315,120]
[355645401,1741426244799,-518.76118132,0.00049315,120]
[355645402,1741426244808,-504.45314012,0.00049315,120]
[355645403,1741426244817,-500.0,0.00049315,120]
[355645404,1741426244826,-598.79,0.00049315,120]
[355645405,1741426244835,-522.52929389,0.00049315,120]
[355645406,1741426244844,-500.0,0.00049315,2]
[355645407,1741426244854,-522.02441341,0.00049315,120]
[355645408,1741426244863,-500.0,0.00049315,120]
[355645409,1741426244873,-586.67551706,0.00049315,120]
[355645410,1741426244881,-500.0,0.00049315,120]
[355645411,1741426244891,-314.50886071,0.00049315,120]
[355645412,1741426244900,-500.0,0.00049315,120]
[355645413,1741426244909,-500.0,0.00049315,120]
[355645414,1741426244919,-500.0,0.00049315,120]
[355645415,1741426244929,-500.0,0.00049315,120]
[355645416,1741426244938,-500.0,0.00049315,120]
[355645417,1741426244947,-509.69120795,0.00049315,120]
[355645418,1741426244956,-5343.29,0.00049315,120]
[355645419,1741426244966,-500.0,0.00049315,120]
[355645420,1741426244975,-2480.32,0.00049315,120]
[355645421,1741426244985,-500.0,0.00049315,120]
[355645422,1741426244994,-503.34,0.00049315,120]
[355645423,1741426245003,-500.0,0.00049315,120]
[355645424,1741426245012,-500.0,0.00049315,120]
[355645425,1741426245022,-561.05,0.00049315,120]
[355645426,1741426245031,-562.35,0.00049315,120]
[355645427,1741426245040,-2500.0,0.00049315,120]
[355645428,1741426245049,-13508.16,0.00049315,120]
[355645429,1741426245058,-500.0,0.00049315,120]
[355645430,1741426245068,-4902.65,0.00049315,7]
[355645431,1741426245077,-1001.27,0.00049315,120]
[355645432,1741426245086,-189.51713978,0.00049315,120]
[355645433,1741426245095,-622.09568481,0.00049315,30]
[355645434,1741426245105,-365.77150341,0.00049315,120]
[355645435,1741426245115,-155.75263644,0.00049315,120]
[355645436,1741426245125,-1235.83,0.00049315,120]
[355645437,1741426245134,-154.70584859,0.00049315,120]
[355645438,1741426245143,-1000.0,0.00049315,7]
[355645439,1741426245153,-564.66866889,0.00049315,120]
[355645440,1741426245162,-500.0,0.00049315,120]
[355645441,1741426245171,-500.0,0.00049315,120]
[355645442,1741426245181,-500.0,0.00049315,120]
[355645443,1741426245191,-500.0,0.00049315,120]
[355645444,1741426245200,-500.0,0.00049315,120]
[355645445,1741426245210,-500.0,0.00049315,120]
[355645446,1741426245220,-671.89,0.00049315,120]
[355645447,1741426245230,-500.0,0.00049315,120]
[355645448,1741426245240,-500.0,0.00049315,120]
[355645449,1741426245249,-500.0,0.00049315,120]
[355645450,1741426245259,-283.40772047,0.00049315,120]
[355645451,1741426245268,-9999.0,0.00049315,2]
[355645452,1741426245278,-500.0,0.00049315,2]
[355645453,1741426245287,-754.89,0.00049315,120]
[355645454,1741426245296,-4022.18,0.00049315,2]
[355645455,1741426245305,-500.0,0.00049315,120]
[355645456,1741426245315,-500.0,0.00049315,120]
[355645457,1741426245324,-549.15,0.00049315,120]
[355645458,1741426245333,-733.44,0.00049315,2]
[355645459,1741426245342,-500.0,0.00049315,120]
[355645460,1741426245352,-500.0,0.00049315,2]
[355645461,1741426245361,-500.0,0.00049315,120]
[355645462,1741426245371,-10350.18659301,0.00049321,2]
[355645463,1741426245380,-500.0,0.00049338,92]
[355645464,1741426245389,-500.0,0.00049373,10]
[355645465,1741426245399,-417.97348351,0.00049373,10]
[355645466,1741426245409,-435.42409574,0.00049373,10]
[355645467,1741426245482,-64.57590426,0.00049373,10]
[355645468,1741426245491,-500.0,0.00049373,10]
[355645469,1741426245501,-500.0,0.00049373,10]
[355645470,1741426245511,-500.0,0.00049373,10]
[355645471,1741426245521,-12125.2912587,0.0004939,4]
[355645490,1741426246635,-302.0,0.00048462,120]
[355645592,1741426289768,153.34,0.000381,31]
[355645593,1741426289888,153.34,0.000381,31]
[355645594,1741426289986,153.34,0.000381,31]
[355645595,1741426299999,234.08847488,0.00041096,2]
[355645605,1741426956826,1000.3,0.0003,2]
[355645618,1741427150113,-159.305725,0.0003589,2]
[355645619,1741427150138,-153.22,0.000381,31]
[355645620,1741427150164,-153.22,0.000381,31]
[355645621,1741427150189,-153.22,0.000381,31]
[355645622,1741427150209,-159.305725,0.00042209,2]
[355645623,1741427150233,-451.3444199,0.00042618,42]
[355645624,1741427150255,-250.0,0.00042898,5]
[355645625,1741427150275,-436.52838276,0.00042899,2]
[355645635,1741427212086,-206.90415627,0.00042899,2]
[355645636,1741427225084,-1072.77721692,0.00042899,2]
[355645637,1741427233113,-1179.85061915,0.00042899,2]
[355645640,1741427243119,-4633.32674572,0.00042899,2]
[355645641,1741427243142,-176.29965377,0.000429,120]
[355645642,1741427243173,-153.22,0.00043,33]
[355645643,1741427243198,-153.22,0.00043,33]
[355645644,1741427243222,-153.22,0.00043,33]
[355645645,1741427243247,-153.22,0.00043,33]
[355645646,1741427243272,-153.22,0.00043,33]
[355645647,1741427243296,-153.22,0.00043,33]
[355645648,1741427243317,-176.29965375,0.0004465,120]
[355645649,1741427243338,-1000.0,0.00046,2]
[355645650,1741427243359,-176.29965375,0.000464,120]
[355645651,1741427243379,-2014.30305148,0.00046418,2]
[355645652,1741427252092,-160.25766881,0.00046418,2]
[355645653,1741427253077,-1076.36862307,0.00046418,2]
[355645667,1741427354106,-150.0,0.00044318,2]
[355645670,1741427431471,187.76133822,0.00044229,6]
[355645923,1741427434830,233.8321,0.000432,120]
[355646000,1741427443031,-10000.0,0.00046,30]
[355646001,1741427443041,-3935.45522329,0.00046418,2]
[355646002,1741427443050,-160.0,0.00046418,2]
[355646003,1741427443060,-797.29,0.00046915,9]
[355646004,1741427443070,-533.78778701,0.00047315,120]
[355646005,1741427443080,-1309.459,0.000475,120]
[355646006,1741427443089,-256.1,0.000476,9]
[355646007,1741427443099,-153.22,0.000479,42]
[355646008,1741427443110,-153.22,0.000479,42]
[355646009,1741427443119,-153.22,0.000479,42]
[355646010,1741427443128,-153.22,0.000479,42]
[355646011,1741427443137,-153.22,0.000479,42]
[355646012,1741427443147,-153.22,0.000479,42]
[355646013,1741427443156,-193.24,0.00047999,30]
[355646014,1741427443165,-1000.0,0.00048,2]
[355646015,1741427443175,-176.29965375,0.0004815,120]
[355646016,1741427443185,-159.305725,0.00048527,2]
[355646017,1741427443194,-351.6142529,0.00048604,4]
[355646018,1741427443205,-505.34102767,0.000489,28]
[355646019,1741427443215,-500.0,0.00048973,10]
[355646020,1741427443225,-500.0,0.00048973,2]
[355646021,1741427443234,-235.43843378,0.0004899,4]
[355646022,1741427443244,-423.24,0.0004899,10]
[355646023,1741427443253,-352.7,0.0004899,10]
[355646024,1741427443263,-293.91,0.0004899,10]
[355646025,1741427443272,-244.93,0.0004899,10]
[355646026,1741427443281,-500.0,0.00048999,2]
[355646027,1741427443290,-500.0,0.00048999,2]
[355646028,1741427443300,-500.0,0.00048999,2]
[355646029,1741427443309,-500.0,0.00048999,2]
[355646030,1741427443318,-500.0,0.00048999,2]
[355646031,1741427443327,-525.12640221,0.00048999,2]
[355646032,1741427443338,-300.0,0.00048999,2]
[355646033,1741427443347,-5000.0,0.00049,60]
[355646034,1741427443356,-1000.0,0.00049,2]
[355646035,1741427443365,-99999.886407,0.00049,120]
[355646036,1741427443375,-5000.0,0.00049,15]
[355646037,1741427443384,-10000.0,0.00049,15]
[355646038,1741427443393,-3216.99834901,0.00049,15]
[355646039,1741427443403,-505.34102767,0.00049043,28]
[355646040,1741427443412,-505.34102767,0.00049186,28]
[355646041,1741427443422,-155.70051813,0.0004919,2]
[355646042,1741427443431,-5000.0,0.000492,120]
[355646043,1741427443440,-1675.02801666,0.000492,2]
[355646044,1741427443449,-155.70051812,0.00049245,2]
[355646045,1741427443458,-600.0,0.0004927,2]
[355646046,1741427443467,-500.0,0.00049273,10]
[355646047,1741427443477,-500.0,0.00049273,2]
[355646048,1741427443486,-500.0,0.00049273,10]
[355646049,1741427443496,-500.0,0.00049273,10]
[355646050,1741427443505,-500.0,0.00049273,10]
[355646051,1741427443515,-500.0,0.00049273,10]
[355646052,1741427443524,-500.0,0.00049273,10]
[355646053,1741427443533,-500.0,0.00049273,10]
[355646054,1741427443543,-500.0,0.00049273,10]
[355646055,1741427443552,-500.0,0.00049273,10]
[355646056,1741427443561,-235.43843378,0.00049289,4]
[355646057,1741427443571,-1412.63060268,0.0004929,4]
[355646058,1741427443580,-595.42973364,0.00049291,14]
[355646059,1741427443588,-1000.0,0.00049299,120]
[355646060,1741427443597,-999.0,0.00049299,120]
[355646061,1741427443609,-222000.0,0.000493,2]
[355646062,1741427443618,-55555.0,0.000493,120]
[355646063,1741427443627,-155.70051812,0.000493,2]
[355646064,1741427443638,-9315.1679337,0.000493,2]
[355646065,1741427443647,-470.87686756,0.00049305,4]
[355646066,1741427443657,-503.58559608,0.00049315,120]
[355646067,1741427443666,-500.0,0.00049315,120]
[355646068,1741427443677,-500.0,0.00049315,120]
[355646069,1741427443687,-703.04,0.00049315,120]
[355646070,1741427443696,-703.04,0.00049315,120]
[355646071,1741427443705,-703.04,0.00049315,120]
[355646072,1741427443715,-703.04,0.00049315,120]
[355646073,1741427443724,-703.04,0.00049315,120]
[355646074,1741427443733,-703.04,0.00049315,120]
[355646075,1741427443743,-703.04,0.00049315,120]
[355646076,1741427443752,-703.04,0.00049315,120]
[355646077,1741427443762,-703.04,0.00049315,120]
[355646078,1741427443771,-703.04,0.00049315,120]
[355646079,1741427443886,-703.04,0.00049315,120]
[355646080,1741427443901,-703.04,0.00049315,120]
[355646081,1741427443910,-703.04,0.00049315,120]
[355646082,1741427443923,-703.04,0.00049315,120]
[355646083,1741427443933,-703.04,0.00049315,120]
[355646084,1741427443942,-703.04,0.00049315,120]
[355646085,1741427443952,-703.04,0.00049315,120]
[355646086,1741427443961,-703.04,0.00049315,120]
[355646087,1741427443971,-703.04,0.00049315,120]
[355646088,1741427443980,-703.04,0.00049315,120]
[355646089,1741427443990,-703.04,0.00049315,120]
[355646090,1741427443999,-703.04,0.00049315,120]
[355646091,1741427444009,-703.04,0.00049315,120]
[355646092,1741427444019,-500.0,0.00049315,120]
[355646093,1741427444030,-703.11297275,0.00049315,120]
[355646094,1741427444040,-500.0,0.00049315,120]
[355646095,1741427444049,-500.0,0.00049315,120]
[355646096,1741427444059,-500.0,0.00049315,120]
[355646097,1741427444069,-500.0,0.00049315,120]
[355646098,1741427444078,-500.0,0.00049315,2]
[355646099,1741427444088,-500.0,0.00049315,120]
[355646100,1741427444097,-500.0,0.00049315,120]
[355646101,1741427444107,-500.0,0.00049315,120]
[355646102,1741427444116,-702.98,0.00049315,120]
[355646103,1741427444125,-3559.72,0.00049315,120]
[355646104,1741427444135,-500.0,0.00049315,120]
[355646105,1741427444144,-500.0,0.00049315,120]
[355646106,1741427444153,-500.0,0.00049315,2]
[355646107,1741427444163,-500.0,0.00049315,120]
[355646108,1741427444173,-500.0,0.00049315,120]
[355646109,1741427444183,-715.74,0.00049315,120]
[355646110,1741427444192,-562.35,0.00049315,120]
[355646111,1741427444201,-387.03243612,0.00049315,120]
[355646112,1741427444211,-500.0,0.00049315,120]
[355646113,1741427444221,-630.99624878,0.00049315,120]
[355646114,1741427444230,-500.0,0.00049315,120]
[355646115,1741427444240,-2856.28,0.00049315,120]
[355646116,1741427444250,-1054.4,0.00049315,120]
[355646117,1741427444259,-500.0,0.00049315,120]
[355646118,1741427444269,-573.84,0.00049315,120]
[355646119,1741427444279,-500.0,0.00049315,120]
[355646120,1741427444288,-500.0,0.00049315,120]
[355646121,1741427444298,-500.0,0.00049315,120]
[355646122,1741427444307,-500.0,0.00049315,120]
[355646123,1741427444317,-723.43,0.00049315,120]
[355646124,1741427444327,-733.52,0.00049315,120]
[355646125,1741427444336,-254.91945679,0.00049315,120]
[355646126,1741427444345,-500.0,0.00049315,120]
[355646127,1741427444355,-500.0,0.00049315,120]
[355646128,1741427444366,-500.0,0.00049315,120]
[355646129,1741427444377,-500.0,0.00049315,120]
[355646130,1741427444386,-381.20780864,0.00049315,120]
[355646131,1741427444395,-2376.98,0.00049315,120]
[355646132,1741427444404,-511.37185429,0.00049315,120]
[355646133,1741427444414,-451.16224964,0.00049315,120]
[355646134,1741427444425,-500.0,0.00049315,120]
[355646135,1741427444434,-500.0,0.00049315,120]
[355646136,1741427444443,-12945.32,0.00049315,120]
[355646137,1741427444452,-583.04,0.00049315,120]
[355646138,1741427444461,-4698.38,0.00049315,7]
[355646139,1741427444472,-1184.33,0.00049315,120]
[355646140,1741427444481,-500.0,0.00049315,120]
[355646141,1741427444491,-959.56,0.00049315,120]
[355646142,1741427444500,-1121.72,0.00049315,120]
[355646143,1741427444509,-500.0,0.00049315,120]
[355646144,1741427444518,-1000.0,0.00049315,7]
[355646145,1741427444528,-518.54809703,0.00049315,120]
[355646146,1741427444537,-563.62689189,0.00049315,120]
[355646147,1741427444546,-500.0,0.00049315,120]
[355646148,1741427444555,-222.77602342,0.00049315,120]
[355646149,1741427444565,-376.36395936,0.00049315,120]
[355646150,1741427444574,-500.0,0.00049315,120]
[355646151,1741427444583,-500.0,0.00049315,120]
[355646152,1741427444593,-3854.59,0.00049315,2]
[355646153,1741427444602,-500.0,0.00049315,120]
[355646154,1741427444613,-555.43,0.00049315,120]
[355646155,1741427444622,-541.14762266,0.00049315,120]
[355646156,1741427444632,-643.9,0.00049315,120]
[355646157,1741427444641,-500.0,0.00049315,120]
[355646158,1741427444650,-9999.0,0.00049315,2]
[355646159,1741427444660,-500.0,0.00049315,2]
[355646160,1741427444672,-545.45006945,0.00049315,120]
[355646161,1741427444681,-5120.65,0.00049315,120]
[355646162,1741427444691,-545.06,0.00049315,120]
[355646163,1741427444702,-702.88,0.00049315,2]
[355646164,1741427444712,-1505.23,0.00049315,120]
[355646165,1741427444721,-1505.23,0.00049315,120]
[355646166,1741427444730,-1505.23,0.00049315,120]
[355646167,1741427444739,-1505.23,0.00049315,120]
[355646168,1741427444748,-1505.23,0.00049315,120]
[355646169,1741427444758,-1505.23,0.00049315,120]
[355646170,1741427444768,-1505.23,0.00049315,120]
[355646171,1741427444779,-1505.23,0.00049315,120]
[355646172,1741427444790,-1505.23,0.00049315,120]
[355646173,1741427444799,-1505.23,0.00049315,120]
[355646174,1741427444809,-1505.23,0.00049315,120]
[355646175,1741427444819,-1505.23,0.00049315,120]
[355646176,1741427444829,-1505.23,0.00049315,120]
[355646177,1741427444839,-505.34102767,0.00049329,28]
[355646178,1741427444849,-235.43843378,0.00049363,4]
[355646179,1741427444858,-193.24,0.00049369,30]
[355646180,1741427444867,-500.0,0.00049373,10]
[355646181,1741427444877,-150.0,0.00049373,3]
[355646182,1741427444886,-150.0,0.00049373,10]
[355646183,1741427444895,-2118.94590402,0.0004939,4]
[355646184,1741427444905,-2867.76963432,0.000494,41]
[355646185,1741427444914,-1024.0,0.000494,120]
[355646186,1741427444925,-298536.04151223,0.000494,120]
[355646229,1741427498049,153.09,0.000381,31]
[355646230,1741427498104,153.09,0.000381,31]
[355646231,1741427498161,153.09,0.00043,33]
[355646232,1741427498223,153.09,0.00043,33]
[355646233,1741427498283,153.09,0.00043,33]
[355646234,1741427498340,153.09,0.00043,33]
[355646268,1741427640193,189.41,0.0003,2]
[355646310,1741428247676,189.405,0.00027397,2]
[355646313,1741428338094,-159.786316,0.0003589,2]
[355646314,1741428338120,-153.01,0.000381,31]
[355646315,1741428338144,-153.01,0.000381,31]
[355646316,1741428338170,-153.01,0.000381,31]
[355646317,1741428338194,-421.5972201,0.00040906,2]
[355646318,1741428338377,-159.786316,0.00042209,2]
[355646319,1741428338406,-153.01,0.00043,33]
[355646320,1741428338432,-153.01,0.00043,33]
[355646321,1741428338459,-153.01,0.00043,33]
[355646322,1741428338483,-153.01,0.00043,33]
[355646323,1741428338510,-153.01,0.00043,33]
[355646324,1741428338539,-126.32890705,0.00043,33]
[355646329,1741428358109,-26.68109295,0.00043,33]
[355646330,1741428358131,-250.22209,0.000432,120]
[355646331,1741428358153,-1247.9958066,0.00043377,2]
[355646332,1741428358174,-215.114,0.00046629,2]
[355646333,1741428358199,-95.2796308,0.0004669,9]
[355646340,1741428434073,-653.1903692,0.0004669,9]
[355646341,1741428434092,-242.81,0.0004698,30]
[355646342,1741428434112,-219.39,0.0004698,30]
[355646343,1741428434132,-500.0,0.00046989,120]
[355646344,1741428434153,-166.8510779,0.00046989,2]
[355646345,1741428434181,-318.49042264,0.00046989,2]
[355646346,1741428436144,-176.29965375,0.00046889,120]
[355646347,1741428436168,-14.65849946,0.00046989,2]
[355646348,1741428436193,-500.0,0.00046989,2]
[355646349,1741428436219,-500.0,0.00046989,120]
[355646350,1741428436241,-600.0,0.00046989,2]
[355646351,1741428436267,-500.0,0.00046989,2]
[355646352,1741428436308,-500.0,0.00046989,120]
[355646353,1741428436339,-500.0,0.00046989,2]
[355646354,1741428436368,-500.0,0.00046989,120]
[355646355,1741428436394,-500.0,0.00046989,2]
[355646356,1741428436421,-413.97623755,0.00046989,2]
[355646357,1741428436447,-500.0,0.00046989,2]
[355646358,1741428436470,-500.0,0.00046989,120]
[355646359,1741428436494,-353.50119113,0.00046989,120]
[355646360,1741428436520,-500.0,0.00046989,2]
[355646361,1741428436547,-500.0,0.00046989,2]
[355646362,1741428436575,-361.12113017,0.00046989,120]
[355646363,1741428436601,-500.0,0.00046989,2]
[355646364,1741428436627,-500.0,0.00046989,2]
[355646365,1741428436651,-500.0,0.00046989,2]
[355646366,1741428436677,-500.0,0.00046989,2]
[355646367,1741428436700,-500.0,0.00046989,2]